bitfinex-derivatives/quotes_ETHF0:USTF0_20260316
["timestamp","ask_amount","ask_price","bid_price","bid_amount"]
[1773658662500,7.64190987,2276.7,2275.3,10.97965194]
[1773658662802,7.11471993,2276.5,2275.3,3.61534257]
[1773658663200,7.11471993,2276.3,2275.2,3.61534257]
[1773658663399,7.11471993,2276.3,2275.1,0.00413695]
[1773658663606,7.11471993,2276.2,2275.1,0.00413695]
[1773658664701,7.11471993,2276.2,2275.1,7.37064632]
[1773658665106,7.11471993,2276.2,2275.2,7.36650937]
[1773658665308,7.11471993,2276.2,2275.3,7.36650937]
[1773658668108,7.11471993,2276.2,2275.1,10.98598889]
[1773658668908,7.11471993,2276.2,2275.2,7.36650937]
[1773658669603,7.11471993,2276.2,2275.1,0.00413695]
[1773658669604,8.67885177,2276.2,2275.1,0.00413695]
[1773658669802,7.11471993,2276.0,2274.7,10.98185194]
[1773658670002,7.11471993,2275.8,2274.7,10.98185194]
[1773658670709,7.11471993,2275.8,2274.9,7.36650937]
[1773658670902,7.11471993,2275.8,2274.9,7.36784903]
[1773658671103,7.11471993,2275.8,2275.0,7.36650937]
[1773658675511,6.78011683,2275.6,2274.9,0.00383966]
[1773658677903,6.78011683,2275.6,2275.0,6.66145438]
[1773658678108,6.78011683,2275.7,2275.0,6.66145438]
[1773658678614,1.9,2275.6,2275.0,6.66145438]
[1773658679405,6.78011683,2276.6,2275.6,6.66145438]
[1773658679609,6.78500222,2276.9,2276.1,6.66145438]
[1773658679910,0.00488539,2276.9,2276.3,6.66145438]
[1773658680112,6.78500222,2276.9,2276.3,6.66145438]
[1773658680715,6.78500222,2276.9,2276.1,6.66145438]
[1773658681215,0.00488539,2276.9,2276.2,6.66145438]
[1773658682512,0.00488539,2276.9,2276.2,14.00545438]
[1773658682712,0.00488539,2276.9,2276.3,6.42136066]
[1773658682915,6.78500222,2276.9,2276.1,17.35817901]
[1773658683112,6.78500222,2276.9,2276.2,6.39483644]
[1773658683314,6.78011683,2278.0,2276.8,6.373079]
[1773658683513,6.78011683,2278.0,2276.9,6.373079]
[1773658683714,6.78011683,2278.0,2276.7,10.02036042]
[1773658683915,6.78011683,2278.0,2276.7,6.38594335]
[1773658684210,6.78011683,2277.5,2276.7,0.00474357]
[1773658684512,6.78011683,2277.5,2276.1,6.38594335]
[1773658684711,1.56413184,2277.6,2276.1,6.38594335]
[1773658684918,6.78445606,2278.0,2277.0,6.38677238]
[1773658685312,6.78445606,2278.0,2277.0,6.39213108]
[1773658686911,0.00433923,2278.0,2277.2,5.77730306]
[1773658687714,0.00433923,2278.0,2277.3,5.76077977]
[1773658688415,6.78445606,2278.0,2277.3,5.76077977]
[1773658689220,6.78445606,2278.0,2277.0,5.73456734]
[1773658691925,6.78445606,2278.0,2277.0,0.0053587]
[1773658692122,6.78445606,2278.0,2276.8,5.54353912]
[1773658693029,6.78011683,2277.8,2276.8,5.54680506]
[1773658700938,6.78011683,2277.8,2276.8,0.00326594]
[1773658701438,6.78011683,2277.7,2276.8,5.18254899]
[1773658701633,6.78011683,2277.5,2276.8,0.00326594]
[1773658702038,6.78011683,2277.5,2276.4,5.16306062]
[1773658703130,6.78011683,2277.5,2276.4,5.16793655]
[1773658704538,6.78011683,2277.5,2276.4,5.09093655]
[1773658708038,7.08620699,2277.3,2276.4,0.00487593]
[1773658708534,8.6483603,2277.3,2276.4,0.00487593]
[1773658709744,0.21953,2277.2,2276.4,0.00487593]
[1773658709941,25.40920699,2277.1,2276.4,0.00487593]
[1773658710138,7.08620699,2277.0,2276.4,0.00487593]
[1773658710744,7.08620699,2277.0,2276.1,4.7649181]
[1773658710944,7.08620699,2277.0,2275.9,8.39059103]
[1773658711144,7.08620699,2277.0,2275.8,8.39059103]
[1773658712044,7.08620699,2277.0,2275.9,4.74166984]
[1773658712247,7.08620699,2276.8,2275.9,4.74166984]
[1773658713045,7.08620699,2276.8,2275.8,0.00448881]
[1773658713543,7.08620699,2276.8,2275.9,4.73561856]
[1773658713942,7.08620699,2276.8,2276.0,4.77864168]
[1773658714241,3.66451927,2277.7,2276.4,4.77864168]
[1773658714442,7.08620699,2277.9,2277.0,4.76270786]
[1773658714641,7.08620699,2277.9,2277.1,4.76270786]
[1773658715346,0.00433923,2278.0,2277.2,8.58367418]
[1773658715547,7.08620699,2278.3,2277.5,4.71383058]
[1773658716041,7.08620699,2279.0,2277.6,4.77282073]
[1773658716243,7.08620699,2278.8,2277.6,4.77282073]
[1773658716541,7.08946076,2278.8,2277.6,4.7778725]
[1773658717644,7.08620699,2278.5,2277.6,4.56251739]
[1773658719443,0.00325377,2278.8,2277.7,8.32518539]
[1773658719444,7.08946076,2278.8,2277.7,8.32518539]
[1773658719643,7.08946076,2278.8,2277.7,4.69076832]
[1773658721551,7.08946076,2278.8,2277.8,4.48521713]
[1773658725750,7.08620699,2278.6,2277.6,4.54880145]
[1773658726657,7.08620699,2278.6,2277.6,0.00505177]
[1773658727359,8.6483603,2278.6,2277.6,0.00505177]
[1773658728159,7.08620699,2278.4,2277.6,0.00505177]
[1773658729358,0.00325377,2278.8,2277.7,4.60614725]
[1773658729557,7.08946076,2278.8,2277.7,4.82562725]
[1773658730661,7.08946076,2278.8,2277.7,4.60614725]
[1773658733158,7.08946076,2278.8,2277.9,4.74828786]
[1773658734260,6.31461858,2279.7,2278.5,4.76020994]
[1773658735064,6.60365981,2279.5,2278.1,4.73457676]
[1773658735256,6.60855042,2279.5,2278.1,4.73457676]
[1773658741763,6.60365981,2279.3,2278.1,4.73457676]
[1773658741967,6.60365981,2279.0,2277.9,4.53683125]
[1773658743274,6.60365981,2279.0,2277.9,8.17124832]
[1773658743475,6.60365981,2279.0,2278.0,4.60910244]
[1773658744168,6.60365981,2279.0,2278.0,8.24351951]
[1773658744377,6.60365981,2279.0,2278.1,3.63441707]
[1773658744872,6.60365981,2279.0,2277.9,3.63441707]
[1773658745676,6.60365981,2279.0,2277.9,8.27169496]
[1773658746375,6.60365981,2279.0,2277.9,3.63441707]
[1773658746674,6.60365981,2278.7,2277.9,3.63441707]
[1773658746868,6.60365981,2278.7,2277.9,8.25718783]
[1773658747069,6.60365981,2278.7,2277.9,8.22368783]
[1773658747468,6.60365981,2278.7,2277.9,4.62277076]
[1773658748180,6.60365981,2278.7,2277.7,4.63022649]
[1773658750481,6.60365981,2278.7,2277.7,10.05202685]
[1773658750780,6.60365981,2278.7,2277.6,10.25071864]
[1773658751874,6.60365981,2278.7,2277.7,4.82378822]
[1773658754485,6.60365981,2278.7,2277.6,5.42685213]
[1773658754680,6.60365981,2278.7,2277.6,10.20467973]
[1773658755085,6.60365981,2278.7,2277.7,4.7768771]
[1773658755387,6.60365981,2278.7,2277.8,4.7768771]
[1773658756481,8.16581312,2278.7,2277.7,5.42180036]
[1773658756684,8.16581312,2278.7,2277.7,4.74722857]
[1773658756887,6.60365981,2278.7,2277.7,4.74722857]
[1773658759182,6.60365981,2278.7,2277.7,4.96670857]
[1773658759388,6.60365981,2278.7,2277.8,4.80633464]
[1773658759985,6.60365981,2279.3,2278.2,4.77728161]
[1773658760485,6.60365981,2279.3,2278.4,4.76271485]
[1773658760888,6.60855042,2279.5,2278.8,4.74737511]
[1773658763489,6.60855042,2279.5,2278.5,5.42180036]
[1773658763690,6.60855042,2279.5,2278.6,4.62189075]
[1773658764185,6.60855042,2279.5,2278.5,4.63975815]
[1773658765087,6.60855042,2279.5,2278.3,10.04353337]
[1773658765287,6.60855042,2279.5,2278.3,4.62173301]
[1773658765685,6.60855042,2279.5,2278.2,17.63662109]
[1773658765886,6.60855042,2279.5,2278.2,10.27562109]
[1773658766088,6.60855042,2279.5,2278.2,10.05619109]
[1773658766392,6.60855042,2279.5,2278.1,4.62000738]
[1773658769094,6.10776008,2279.3,2278.0,4.71988335]
[1773658770798,6.10776008,2279.3,2278.1,4.65547882]
[1773658773597,6.10776008,2279.3,2278.2,4.56762731]
[1773658775497,6.10776008,2279.3,2278.1,0.21944]
[1773658775498,6.10776008,2279.3,2278.1,4.289714]
[1773658778200,6.10776008,2279.1,2277.8,4.37389729]
[1773658778692,1.56107815,2279.4,2277.8,4.37389729]
[1773658778693,6.10776008,2278.9,2277.8,4.37389729]
[1773658779202,6.10776008,2278.9,2278.0,4.35940449]
[1773658782101,6.10776008,2278.9,2277.8,5.42180036]
[1773658782102,6.10776008,2278.9,2278.2,4.3851444]
[1773658782303,6.10776008,2278.9,2278.4,4.3851444]
[1773658786704,6.10776008,2278.9,2278.1,4.28725399]
[1773658788504,6.10776008,2278.9,2278.1,9.70905435]
[1773658789003,6.10776008,2278.9,2278.2,4.26946819]
[1773658789703,6.10776008,2278.9,2278.1,5.42180036]
[1773658790008,6.10776008,2278.9,2278.0,4.25587981]
[1773658791002,6.10776008,2278.9,2278.1,4.31240808]
[1773658791203,6.10776008,2278.9,2278.2,4.31240808]
[1773658793203,6.01110433,2279.3,2278.2,4.53183808]
[1773658793400,6.01110433,2279.3,2278.3,4.29641441]
[1773658793800,6.01110433,2279.3,2278.3,9.71821477]
[1773658794016,6.01110433,2279.3,2278.3,5.42180036]
[1773658794309,6.01110433,2279.3,2278.2,9.83492962]
[1773658795009,6.01110433,2279.3,2278.3,4.19196205]
[1773658800316,6.01110433,2279.3,2278.1,9.54788654]
[1773658800512,7.48866811,2279.2,2277.9,9.53464943]
[1773658800714,5.92758996,2278.9,2277.7,4.11284907]
[1773658801017,5.92758996,2278.5,2277.7,4.11284907]
[1773658801408,5.92758996,2278.9,2277.9,4.1028004]
[1773658801610,5.92758996,2278.9,2278.1,4.1028004]
[1773658802113,6.89134949,2278.9,2278.0,5.42180036]
[1773658802313,6.89134949,2278.9,2277.9,4.22562541]
[1773658802918,5.92758996,2278.5,2277.6,3.79621179]
[1773658804219,5.92758996,2278.5,2277.7,3.84315599]
[1773658805018,5.92758996,2278.5,2277.6,3.93557448]
[1773658805414,5.92758996,2278.2,2277.4,9.33926107]
[1773658805611,5.92758996,2278.2,2277.4,3.91746071]
[1773658806015,0.96375953,2278.5,2277.2,3.91636181]
[1773658806016,5.92758996,2278.0,2277.2,3.91636181]
[1773658806411,5.92758996,2278.0,2277.2,3.92012987]
[1773658806616,5.92758996,2277.8,2277.2,0.00376806]
[1773658806819,5.93221716,2277.8,2277.2,0.00376806]
[1773658808717,5.93221716,2277.8,2276.8,7.53523445]
[1773658808919,5.93221716,2277.8,2276.8,3.89252023]
[1773658809419,5.93221716,2277.8,2276.6,7.5026709]
[1773658809825,5.93221716,2277.8,2276.6,3.86507611]
[1773658810119,5.93221716,2277.8,2276.6,0.00511943]
[1773658810324,5.92758996,2278.3,2277.3,0.21952]
[1773658810515,5.92758996,2278.3,2277.3,3.85487841]
[1773658811221,5.92758996,2278.1,2276.6,0.00511943]
[1773658811525,5.92758996,2277.9,2276.6,0.00511943]
[1773658811727,5.92758996,2277.7,2276.6,0.00511943]
[1773658813025,5.92758996,2277.7,2276.3,3.55342385]
[1773658813925,0.21945,2278.0,2276.3,3.55767965]
[1773658813926,5.92758996,2277.5,2276.3,3.55767965]
[1773658815028,5.92758996,2277.4,2276.3,3.55767965]
[1773658815227,5.92758996,2277.4,2276.3,0.0042558]
[1773658818629,5.92758996,2277.4,2275.9,3.18932316]
[1773658818829,5.92758996,2276.9,2275.5,3.17670879]
[1773658819032,5.92758996,2276.9,2275.2,1.56383883]
[1773658819033,5.92758996,2276.9,2275.9,3.17742299]
[1773658819334,5.92758996,2276.8,2275.7,3.16484329]
[1773658819726,5.92758996,2276.8,2275.7,3.16956773]
[1773658820331,5.92758996,2276.8,2276.2,3.16323435]
[1773658821536,5.92758996,2276.8,2276.0,3.2197243]
[1773658821732,5.92758996,2276.8,2276.0,3.0000743]
[1773658821934,5.92758996,2276.7,2275.1,3.00702487]
[1773658822131,5.92758996,2276.9,2276.0,3.00702487]
[1773658822938,5.93278828,2276.9,2276.1,3.25072366]
[1773658824538,5.93278828,2276.9,2276.0,0.00425021]
[1773658826936,5.93278828,2276.9,2276.0,2.55616108]
[1773658828435,5.93278828,2276.9,2276.0,0.00425021]
[1773658828837,6.12697072,2276.6,2276.0,0.00425021]
[1773658830943,6.12697072,2276.4,2275.5,3.40337768]
[1773658831145,6.12697072,2276.2,2275.5,3.40337768]
[1773658831841,6.12697072,2276.2,2275.5,0.96961725]
[1773658832247,6.12697072,2276.2,2275.5,3.40843826]
[1773658832937,7.09213156,2276.2,2275.5,0.00445641]
[1773658833541,6.12697072,2276.2,2275.7,0.96516084]
[1773658833843,6.12697072,2276.2,2275.5,3.46004017]
[1773658834545,6.12697072,2276.2,2275.5,0.96961725]
[1773658834741,6.12697072,2276.2,2275.5,0.00445641]
[1773658835145,6.12697072,2276.0,2275.5,0.00445641]
[1773658835443,6.12697072,2276.0,2275.2,2.50465289]
[1773658835646,6.12697072,2276.0,2275.7,0.96516084]
[1773658836346,6.12697072,2276.0,2275.7,0.97061964]
[1773658836646,6.12697072,2276.5,2275.7,0.97061964]
[1773658837547,6.12697072,2276.2,2275.4,0.96516084]
[1773658837743,6.12697072,2276.2,2275.2,7.03682351]
[1773658838449,6.12697072,2276.0,2275.2,3.41618426]
[1773658838648,6.12697072,2276.0,2275.2,3.42045099]
[1773658838848,6.12697072,2276.0,2275.2,0.00426673]
[1773658839051,6.12697072,2275.8,2275.2,0.00426673]
[1773658840149,6.12697072,2275.5,2274.8,2.29952422]
[1773658841052,6.12697072,2275.5,2274.6,2.31516203]
[1773658841250,6.12697072,2275.5,2274.5,0.21979]
[1773658841251,6.12697072,2275.5,2274.8,2.31852851]
[1773658841858,6.12697072,2275.7,2275.0,2.58223212]
[1773658842758,6.24287843,2277.2,2276.4,0.01280285]
[1773658842954,6.24287843,2277.2,2276.5,0.01280285]
[1773658844052,6.24287843,2277.2,2276.4,0.00356791]
[1773658844053,6.25702451,2277.0,2276.4,0.00356791]
[1773658844249,6.26213929,2277.0,2276.4,0.00356791]
[1773658844758,17.77859406,2276.9,2276.4,1.4791816]
[1773658845160,11.52156955,2276.9,2276.4,1.4791816]
[1773658845361,0.00511478,2277.0,2276.4,1.4791816]
[1773658845961,6.28915215,2278.3,2277.0,1.38922666]
[1773658846155,6.59284979,2278.6,2277.8,1.38922666]
[1773658846456,6.29170954,2278.8,2278.1,1.37226103]
[1773658846862,4.398,2278.4,2278.1,1.37226103]
[1773658847065,4.06823081,2278.4,2278.1,1.37576994]
[1773658847260,0.00398885,2278.4,2278.3,1.36517096]
[1773658847466,6.29170954,2278.8,2278.2,7.44]
[1773658847763,17.81682412,2278.7,2278.2,8.7884336]
[1773658847962,6.29525457,2278.7,2278.1,0.00350891]
[1773658848160,17.81682412,2278.7,2278.1,0.00350891]
[1773658848364,6.25037707,2278.6,2278.1,0.00350891]
[1773658848757,6.25037707,2278.4,2277.8,1.44592582]
[1773658848954,6.25037707,2278.4,2277.9,7.44]
[1773658849155,6.24915293,2280.1,2278.8,8.77517]
[1773658849360,6.96502074,2280.7,2279.4,1.56479355]
[1773658849561,6.96502074,2280.7,2279.5,7.44]
[1773658849862,6.9649464,2280.5,2279.2,0.00086377]
[1773658850165,6.97055312,2280.5,2279.2,0.0062223]
[1773658850356,6.9649464,2280.3,2279.3,7.44386377]
[1773658850766,6.9649464,2280.1,2279.2,0.00535853]
[1773658851164,6.9649464,2280.1,2279.3,7.446]
[1773658851367,6.9649464,2280.1,2279.2,0.00535853]
[1773658851662,7.03017941,2279.9,2279.2,0.00535853]
[1773658852067,7.06107028,2279.7,2278.7,1.81489437]
[1773658852567,22.44723906,2279.6,2278.7,1.81489437]
[1773658852764,7.6709651,2279.6,2278.7,1.81489437]
[1773658853060,7.6709651,2279.4,2278.3,1.7904959]
[1773658853467,7.6709651,2279.2,2278.3,1.7904959]
[1773658853667,7.6709651,2279.2,2278.3,9.2394959]
[1773658854067,14.77627396,2279.1,2278.3,1.7904959]
[1773658854463,21.96060283,2279.1,2278.4,7.449]
[1773658855269,7.18432887,2279.0,2278.2,0.00562186]
[1773658855770,7.18432887,2278.8,2278.2,0.00562186]
[1773658855966,7.18753794,2278.8,2277.9,1.80042991]
[1773658856167,21.96060283,2278.7,2277.9,1.80042991]
[1773658856367,7.18432887,2278.6,2277.9,1.80042991]
[1773658856762,7.18432887,2278.6,2277.3,0.21952]
[1773658857069,21.96060283,2278.6,2277.3,0.2231202]
[1773658857269,7.94606734,2278.5,2277.3,5.04476496]
[1773658858366,7.94606734,2278.5,2277.5,1.56479355]
[1773658859176,7.94606734,2278.5,2277.6,7.447]
[1773658859676,3.94606734,2278.5,2277.7,3.92194197]
[1773658859975,3.94606734,2278.5,2277.9,3.91444816]
[1773658860171,14.77627396,2278.4,2278.0,11.35944816]
[1773658860371,14.77627396,2278.4,2278.1,4.17109545]
[1773658860876,7.18432887,2278.3,2277.6,4.15425332]
[1773658861172,7.18432887,2278.3,2277.4,7.29616575]
[1773658861377,7.79073216,2278.3,2277.4,7.29616575]
[1773658861567,7.18432887,2278.3,2277.3,0.0036002]
[1773658861876,7.79073216,2278.1,2277.3,0.0036002]
[1773658862071,7.18432887,2278.1,2277.3,0.0036002]
[1773658862271,7.18432887,2277.9,2277.3,0.0036002]
[1773658862877,7.18432887,2277.6,2277.3,0.0036002]
[1773658863475,0.60640329,2277.5,2277.3,0.0036002]
[1773658864274,15.38267725,2277.4,2277.1,7.44]
[1773658864469,14.77627396,2277.4,2277.1,7.44]
[1773658865175,14.77627396,2277.4,2277.1,7.44538991]
[1773658865676,21.96060283,2277.4,2277.1,0.00538991]
[1773658866381,21.96060283,2277.4,2277.1,7.44538991]
[1773658867379,7.18432887,2277.3,2276.4,7.29616575]
[1773658867677,7.18432887,2277.3,2276.5,7.439]
[1773658867886,7.18432887,2277.1,2276.5,7.439]
[1773658868079,7.18432887,2277.1,2275.6,10.35233355]
[1773658868080,7.18432887,2277.1,2276.0,7.29616575]
[1773658868276,7.18432887,2277.1,2276.1,7.439]
[1773658868277,7.18432887,2276.9,2276.1,7.439]
[1773658868577,0.60640329,2276.8,2276.2,7.439]
[1773658868784,7.18432887,2276.7,2276.0,0.00370278]
[1773658868980,21.96060283,2276.7,2276.0,0.00370278]
[1773658869173,7.18432887,2276.4,2276.0,0.00370278]
[1773658869377,7.18432887,2276.4,2276.1,6.75849082]
[1773658869581,7.79073216,2276.2,2276.0,0.00370278]
[1773658869779,7.18432887,2276.2,2276.0,0.00370278]
[1773658869976,7.18432887,2276.0,2275.8,7.44]
[1773658870180,7.18432887,2276.0,2275.4,7.29616575]
[1773658870382,21.96060283,2276.0,2275.7,7.44]
[1773658870575,14.77627396,2276.0,2275.7,7.44]
[1773658870771,8.11727098,2278.5,2277.5,0.22502199]
[1773658870972,0.60640329,2278.2,2277.5,0.22502199]
[1773658871175,8.11434451,2278.4,2277.5,0.22502199]
[1773658871481,9.76321074,2278.3,2277.5,0.22502199]
[1773658871676,8.11895237,2278.3,2277.5,0.22502199]
[1773658871881,8.11895237,2278.3,2277.5,0.22946004]
[1773658872778,9.06950768,2278.2,2277.5,0.22946004]
[1773658872981,9.67591097,2278.2,2277.5,0.22946004]
[1773658873790,8.02704474,2278.0,2277.5,0.22392805]
[1773658873978,8.02704474,2278.0,2277.6,7.455]
[1773658874574,0.44721841,2278.2,2277.7,0.90732706]
[1773658874775,14.0284,2280.8,2277.7,0.90732706]
[1773658874780,16.256,2279.5,2279.1,0.21935]
[1773658874979,8.58002366,2279.7,2279.1,0.21935]
[1773658875278,24.72803255,2279.6,2279.1,0.21935]
[1773658875481,8.58002366,2279.5,2278.8,0.03506541]
[1773658875786,8.58550285,2279.5,2278.8,0.03911454]
[1773658876177,24.73351174,2279.5,2278.9,7.471]
[1773658876382,24.65128922,2279.4,2278.8,0.00404913]
[1773658876575,24.65128922,2279.4,2278.9,7.474]
[1773658876576,8.50328033,2279.4,2278.9,7.474]
[1773658876786,8.50328033,2279.2,2279.0,7.477]
[1773658877083,8.50328033,2279.2,2279.0,6.74055855]
[1773658877284,8.50328033,2279.2,2279.1,7.481]
[1773658877485,24.65128922,2279.2,2279.1,7.05795728]
[1773658877686,24.65128922,2279.2,2279.1,7.484]
[1773658878185,24.65128922,2279.2,2279.1,7.1865089]
[1773658878685,8.38049583,2279.1,2278.8,0.00404913]
[1773658878884,8.38049583,2279.1,2278.9,7.491]
[1773658879285,24.52850472,2279.1,2279.0,7.495]
[1773658879487,15.07539502,2279.1,2279.0,7.495]
[1773658879686,23.47451632,2279.1,2279.0,7.42389489]
[1773658880084,23.47515339,2279.1,2279.0,3.69930533]
[1773658880285,7.18432887,2279.0,2278.8,0.00404913]
[1773658880478,7.18432887,2279.0,2278.4,0.21941]
[1773658880479,7.18432887,2279.0,2278.9,2.6381879]
[1773658880685,7.18432887,2279.0,2278.4,0.21941]
[1773658880881,22.25972389,2278.9,2278.4,0.21941]
[1773658881084,7.18432887,2278.9,2278.4,0.21941]
[1773658881287,7.18432887,2278.9,2278.5,7.503]
[1773658881491,8.28538783,2279.4,2278.6,7.29616575]
[1773658881782,8.74403423,2280.5,2278.7,0.95919526]
[1773658882190,8.74403423,2280.5,2278.8,0.21938]
[1773658882691,8.74801534,2280.5,2278.8,0.21938]
[1773658882991,8.74801534,2280.5,2278.9,7.511]
[1773658883188,8.74801534,2280.5,2278.8,0.21938]
[1773658883392,8.74801534,2280.5,2279.0,7.513]
[1773658884090,8.74801534,2280.5,2278.9,7.515]
[1773658884591,8.74801534,2280.5,2278.8,0.21938]
[1773658885492,8.74801534,2280.5,2278.6,1.93480759]
[1773658885493,9.64296301,2280.0,2278.6,0.21939]
[1773658886493,9.64296301,2280.0,2279.0,0.21936]
[1773658888290,9.64296301,2280.0,2278.5,0.224335]
[1773658888492,9.64296301,2279.6,2278.5,0.004935]
[1773658889796,9.64296301,2279.6,2278.5,2.14176659]
[1773658890096,9.64296301,2279.6,2278.5,0.224335]
[1773658890991,9.64296301,2279.6,2278.5,0.004935]
[1773658891195,9.64296301,2279.6,2277.9,0.21945]
[1773658891196,9.64296301,2279.3,2277.9,0.21945]
[1773658891595,9.64296301,2278.9,2277.9,0.21945]
[1773658892097,9.64844119,2278.9,2277.9,0.22355563]
[1773658895799,11.20814655,2278.9,2277.9,0.00410563]
[1773658897402,9.64844119,2278.9,2277.9,0.00410563]
[1773658899501,9.64844119,2278.9,2277.5,7.504]
[1773658899897,9.64844119,2278.9,2277.4,0.21951]
[1773658900097,9.64844119,2278.9,2277.4,7.72051]
[1773658900402,9.64844119,2278.9,2277.4,0.21951]
[1773658900602,9.64844119,2278.9,2277.4,7.72361605]
[1773658901201,9.64844119,2278.9,2277.4,0.22361605]
[1773658902101,9.64296301,2278.7,2277.4,0.22361605]
[1773658902308,9.64296301,2278.7,2278.1,0.21943]
[1773658903800,9.64296301,2278.7,2277.6,1.61394057]
[1773658904105,9.64296301,2278.7,2277.6,0.21948]
[1773658904306,9.64296301,2278.7,2277.4,0.00410605]
[1773658908510,9.64296301,2278.5,2277.1,0.21953]
[1773658909705,9.64296301,2278.5,2277.1,0.22473993]
[1773658911809,1.55970536,2278.7,2277.1,0.00520993]
[1773658911810,9.64296301,2278.3,2277.1,0.00520993]
[1773658913109,9.16440872,2278.1,2276.6,0.21958]
[1773658913611,9.16440872,2278.1,2276.6,1.42601086]
[1773658913806,9.16440872,2278.1,2276.6,0.21958]
[1773658914010,9.13166035,2277.9,2276.4,8.7179276]
[1773658914307,9.13166035,2277.9,2276.7,0.21958]
[1773658917107,9.13166035,2277.9,2276.4,0.00508605]
[1773658917314,9.1354516,2277.7,2276.4,1.17611265]
[1773658918309,9.1354516,2277.7,2276.4,0.00508605]
[1773658918510,9.1513485,2277.5,2276.4,0.00508605]
[1773658918912,9.1513485,2277.5,2276.0,1.07465673]
[1773658919108,9.1513485,2277.5,2275.8,1.03639281]
[1773658919109,0.21951,2277.4,2275.8,1.03639281]
[1773658919310,9.17048046,2277.3,2275.8,1.03639281]
[1773658920115,9.17370994,2277.3,2275.8,1.04061967]
[1773658920316,9.17370994,2277.3,2275.9,0.21966]
[1773658921008,9.11432209,2277.1,2275.8,1.08905552]
[1773658921915,9.11432209,2277.1,2275.8,0.00422686]
[1773658922112,9.11432209,2277.1,2275.8,1.03148644]
[1773658923204,9.11432209,2277.1,2275.9,0.21966]
[1773658923410,9.11432209,2277.1,2276.0,0.96874175]
[1773658923811,9.11432209,2277.1,2275.9,0.21966]
[1773658924011,9.11432209,2277.1,2275.9,1.16785265]
[1773658924516,9.11432209,2277.1,2275.9,0.21966]
[1773658925015,9.11432209,2277.1,2275.8,0.00422686]
[1773658927509,9.11432209,2277.1,2275.8,0.72041962]
[1773658928316,9.11432209,2277.1,2275.8,0.94007962]
[1773658929717,9.11432209,2277.1,2275.8,0.22388686]
[1773658929919,9.11432209,2277.1,2275.9,0.77003717]
[1773658932925,9.11432209,2277.1,2276.0,0.21965]
[1773658933117,9.11432209,2277.1,2276.2,0.88886591]
[1773658934021,9.11432209,2277.1,2276.2,0.8597012]
[1773658934419,9.11432209,2277.1,2276.3,0.60917907]
[1773658936115,9.11432209,2277.1,2276.2,0.21963]
[1773658936516,9.11432209,2277.1,2275.8,0.59143983]
[1773658938715,9.11432209,2277.1,2276.0,0.49495439]
[1773658938918,9.11432209,2277.1,2276.2,0.4450708]
[1773658940723,9.15244549,2277.9,2276.6,0.38481508]
[1773658940915,9.14724936,2278.5,2277.1,0.39520734]
[1773658941123,9.15047884,2278.0,2277.3,0.39520734]
[1773658941322,9.14724936,2278.0,2277.3,0.39520734]
[1773658941922,9.15164411,2278.0,2277.3,0.39520734]
[1773658942120,9.15164411,2278.0,2277.4,0.56295762]
[1773658942329,9.14775318,2278.2,2277.6,0.56498635]
[1773658942927,9.31913272,2278.9,2277.9,0.00273728]
[1773658943122,9.31913272,2278.9,2278.0,0.00273728]
[1773658943324,9.32356165,2278.9,2278.0,0.00273728]
[1773658944528,9.33380308,2278.7,2278.0,0.00273728]
[1773658944725,9.33380308,2278.7,2277.8,0.21947]
[1773658944921,9.32720024,2278.5,2277.4,0.00322176]
[1773658945422,9.32720024,2278.5,2277.4,7.26822176]
[1773658947622,9.32720024,2278.5,2277.5,0.2195]
[1773658947827,9.33228476,2278.3,2277.5,0.2195]
[1773658948525,9.33228476,2278.3,2277.7,0.21948]
[1773658948726,9.33551424,2278.3,2277.7,0.21948]
[1773658949326,9.33551424,2278.3,2277.4,0.00322176]
[1773658949930,9.33551424,2278.3,2277.1,0.21953]
[1773658949931,10.89640305,2278.3,2277.1,0.21953]
[1773658950430,10.89640305,2278.3,2276.5,1.78047881]
[1773658950933,10.89640305,2278.3,2276.5,7.47025405]
[1773658950934,9.29924849,2277.9,2276.5,7.47025405]
[1773658951426,9.29924849,2277.7,2276.5,0.22525405]
[1773658951821,9.30049961,2277.5,2276.5,0.22525405]
[1773658952224,9.30049961,2277.5,2276.5,0.00566405]
[1773658952430,9.30049961,2277.3,2276.5,0.00566405]
[1773658952633,9.30389752,2277.3,2276.5,0.00566405]
[1773658952824,9.30524988,2277.6,2277.2,1.56088881]
[1773658953132,8.18005745,2277.6,2276.9,1.07777735]
[1773658953332,8.18005745,2277.6,2276.9,0.21956]
[1773658953930,8.18510926,2277.6,2276.9,0.21956]
[1773658954530,8.74205678,2277.4,2276.9,0.21956]
[1773658955836,8.74528626,2277.4,2276.9,0.21956]
[1773658957027,8.74528626,2277.4,2276.6,7.231]
[1773658958339,8.74528626,2277.4,2276.5,7.23566405]
[1773658958732,8.74528626,2277.4,2276.6,0.21959]
[1773658959640,8.74528626,2277.4,2276.5,0.00566405]
[1773658959829,8.74528626,2277.4,2276.1,0.21963]
[1773658960840,8.74528626,2277.4,2276.1,0.22311762]
[1773658961234,8.74528626,2277.4,2276.1,7.45411762]
[1773658961640,10.30617507,2277.4,2276.1,0.22311762]
[1773658962041,8.74528626,2277.4,2276.1,0.22311762]
[1773658962337,10.30617507,2277.4,2276.1,0.22311762]
[1773658966144,8.74528626,2277.4,2276.1,0.22311762]
[1773658966443,8.74205678,2277.4,2276.1,0.22311762]
[1773658967236,8.62576017,2277.2,2276.1,0.22311762]
[1773658967948,0.00505181,2277.6,2276.2,0.88855327]
[1773658968143,8.63081198,2277.6,2277.2,0.21953]
[1773658968338,8.62576017,2278.7,2277.2,9.13285718]
[1773658969248,8.62984182,2278.7,2277.4,8.91332718]
[1773658970239,8.62984182,2278.7,2277.5,0.2195]
[1773658970447,8.62984182,2278.7,2277.5,9.13282718]
[1773658972247,8.62984182,2278.7,2277.5,0.2195]
[1773658973249,8.62984182,2278.7,2277.3,9.10862021]
[1773658974351,8.62984182,2278.7,2277.3,16.32262021]
[1773658975552,8.62984182,2278.7,2277.3,7.214]
[1773658975953,8.62984182,2278.7,2277.1,7.213]
[1773658976150,8.54562842,2278.4,2277.1,7.213]
[1773658976647,8.54562842,2278.4,2277.1,16.27936218]
[1773658977054,8.54562842,2278.4,2277.1,9.06636218]
[1773658977253,8.54562842,2278.4,2277.1,16.27936218]
[1773658978553,8.54562842,2278.4,2277.1,7.213]
[1773658979055,8.54562842,2278.4,2277.0,16.49891218]
[1773658980248,8.54562842,2278.4,2277.0,7.213]
[1773658980449,0.21948,2277.7,2276.4,9.06636218]
[1773658980648,8.54562842,2277.2,2276.2,9.06636218]
[1773658981248,8.54562842,2277.2,2276.1,7.21748762]
[1773658981449,8.54562842,2277.2,2276.1,9.0698498]
[1773658981745,8.54562842,2277.2,2276.1,16.2848498]
[1773658981946,8.54562842,2277.2,2276.1,0.00348762]
[1773658984054,15.943,2277.8,2276.4,9.06636218]
[1773658984358,15.943,2277.8,2276.1,8.78902762]